bitfinex-derivatives/quotes_SOLF0:USTF0_20260311
["timestamp","ask_amount","ask_price","bid_price","bid_amount"]
[1773258831685,3.86079838,87.243,87.215,18.1296539]
[1773258831885,3.51175759,87.242,87.215,18.1296539]
[1773258832083,3.51175759,87.241,87.215,18.1296539]
[1773258832284,3.5118285,87.24,87.215,18.1296539]
[1773258832483,3.86079838,87.243,87.215,18.1296539]
[1773258832684,3.5118285,87.242,87.215,18.1296539]
[1773258832884,3.5118285,87.241,87.215,18.1296539]
[1773258833092,3.5118285,87.24,87.215,18.1296539]
[1773258833292,3.86079838,87.243,87.215,18.1296539]
[1773258833493,3.51199652,87.242,87.215,18.1296539]
[1773258833692,3.51199652,87.241,87.215,18.1296539]
[1773258833989,3.51199652,87.24,87.215,18.1296539]
[1773258834187,3.86079838,87.243,87.215,18.1296539]
[1773258834387,3.51207476,87.242,87.217,3.9270866]
[1773258834583,3.51207476,87.241,87.217,3.9270866]
[1773258834794,3.51207476,87.24,87.217,3.9270866]
[1773258834984,3.51207476,87.239,87.217,3.9270866]
[1773258835185,10.69530863,87.287,87.217,3.9270866]
[1773258835390,10.69530863,87.287,87.159,70.18020936]
[1773258835391,3.69292335,87.273,87.233,3.9270866]
[1773258835592,7.20751957,87.272,87.233,3.9270866]
[1773258835784,10.311,87.266,87.233,3.9270866]
[1773258835988,3.51459622,87.265,87.233,3.9270866]
[1773258836189,3.51459622,87.264,87.233,3.9270866]
[1773258836390,14.00492335,87.262,87.233,3.9270866]
[1773258836693,3.51459622,87.261,87.233,3.9270866]
[1773258836894,3.51459622,87.26,87.233,3.9270866]
[1773258837095,3.51459622,87.259,87.233,3.9270866]
[1773258837389,10.312,87.26,87.233,3.9270866]
[1773258837593,3.51228668,87.259,87.233,3.9270866]
[1773258837794,10.312,87.26,87.233,3.9270866]
[1773258837989,3.51228649,87.259,87.233,3.9270866]
[1773258838191,10.312,87.26,87.233,3.9270866]
[1773258838392,3.51151562,87.259,87.233,3.9270866]
[1773258838589,3.69292335,87.262,87.233,3.9270866]
[1773258838793,3.51151562,87.261,87.233,3.9270866]
[1773258838989,3.51151562,87.26,87.233,3.9270866]
[1773258839193,3.69292335,87.262,87.233,3.9270866]
[1773258839396,3.5108734,87.261,87.233,3.9270866]
[1773258839597,3.5108734,87.26,87.233,3.9270866]
[1773258839792,3.69292335,87.262,87.233,3.9270866]
[1773258839994,3.52333081,87.261,87.233,3.9270866]
[1773258840198,3.52333081,87.26,87.233,3.9270866]
[1773258840499,3.69292335,87.262,87.233,3.9270866]
[1773258840694,3.52361187,87.261,87.233,3.9270866]
[1773258840999,7.21653522,87.26,87.23,3.9270866]
[1773258841203,3.69292335,87.26,87.23,3.9270866]
[1773258842497,10.312,87.259,87.23,3.9270866]
[1773258844003,10.312,87.259,87.23,6.37897501]
[1773258844200,10.312,87.259,87.231,3.9270866]
[1773258844499,3.69292335,87.258,87.23,2.45188841]
[1773258845005,3.69292335,87.258,87.23,6.37897501]
[1773258845297,3.51969356,87.295,87.251,3.9270866]
[1773258845500,7.21485192,87.294,87.251,3.9270866]
[1773258845698,7.21574779,87.293,87.251,3.9270866]
[1773258845894,3.69292335,87.289,87.232,3.9270866]
[1773258846099,3.69292335,87.302,87.261,3.9270866]
[1773258846699,10.307,87.301,87.261,3.9270866]
[1773258848902,3.69292335,87.296,87.247,14.30408374]
[1773258849097,3.69292335,87.296,87.24,2.45188841]
[1773258849797,2.45188841,87.3,87.242,3.9270866]
[1773258849798,3.69292335,87.282,87.242,3.9270866]
[1773258850196,3.69292335,87.282,87.24,2.45188841]
[1773258850197,3.69292335,87.295,87.253,3.9270866]
[1773258850904,3.69292335,87.284,87.242,10.314]
[1773258851907,3.69292335,87.281,87.229,3.9270866]
[1773258852204,3.69292335,87.279,87.229,3.9270866]
[1773258853600,3.69292335,87.273,87.229,3.9270866]
[1773258856411,3.69292335,87.27,87.23,6.37897501]
[1773258856603,3.69292335,87.27,87.23,3.9270866]
[1773258856906,3.69292335,87.27,87.23,6.37897501]
[1773258858109,3.69292335,87.27,87.231,3.9270866]
[1773258859602,14.00392335,87.268,87.231,3.9270866]
[1773258860605,14.00392335,87.268,87.216,21.45612561]
[1773258860606,3.68901458,87.265,87.223,3.9082196]
[1773258861215,3.68901458,87.265,87.231,3.9082196]
[1773258862313,3.68901458,87.277,87.24,6.36010801]
[1773258863611,10.31,87.274,87.24,6.36010801]
[1773258864109,13.99901458,87.274,87.24,6.36010801]
[1773258865515,13.99901458,87.274,87.241,3.9082196]
[1773258868726,10.311,87.272,87.241,3.9082196]
[1773258869225,14.00001458,87.272,87.241,3.9082196]
[1773258869826,3.68901458,87.271,87.233,10.315]
[1773258870021,2.45188841,87.29,87.231,3.9082196]
[1773258870022,3.68901458,87.286,87.231,3.9082196]
[1773258870223,3.68901458,87.284,87.241,3.9082196]
[1773258870729,3.68901458,87.282,87.241,3.9082196]
[1773258871029,3.68901458,87.28,87.241,3.9082196]
[1773258871228,3.68901458,87.279,87.241,3.9082196]
[1773258871431,3.68901458,87.275,87.241,3.9082196]
[1773258873435,14.00001458,87.272,87.241,3.9082196]
[1773258873733,14.00001458,87.272,87.24,2.45188841]
[1773258873734,3.68901458,87.271,87.24,2.45188841]
[1773258875934,3.68901458,87.278,87.242,3.9082196]
[1773258877228,3.51607579,87.291,87.261,3.9082196]
[1773258877433,3.68901458,87.301,87.27,2.45188841]
[1773258877626,3.51607579,87.3,87.261,3.9082196]
[1773258877826,7.20509037,87.299,87.261,3.9082196]
[1773258878027,7.20509037,87.298,87.261,3.9082196]
[1773258878234,3.51607579,87.297,87.261,3.9082196]
[1773258878434,3.51607579,87.296,87.261,3.9082196]
[1773258878633,3.51607579,87.295,87.261,3.9082196]
[1773258878837,3.5178594,87.294,87.261,3.9082196]
[1773258879038,3.68901458,87.298,87.261,3.9082196]
[1773258879335,3.68901458,87.296,87.26,2.45188841]
[1773258879537,3.68901458,87.294,87.26,2.44927777]
[1773258879735,3.68901458,87.286,87.249,14.30408374]
[1773258880037,3.68901458,87.286,87.246,3.9082196]
[1773258880231,10.308,87.296,87.26,6.31710206]
[1773258880431,3.89105128,87.294,87.26,2.44927777]
[1773258880635,3.51898526,87.293,87.25,2.44927777]
[1773258880833,3.89105128,87.294,87.25,2.44927777]
[1773258880834,3.89105128,87.291,87.25,2.44927777]
[1773258881035,3.89105128,87.289,87.25,2.44927777]
[1773258881234,3.89105128,87.287,87.25,2.44927777]
[1773258883241,3.89105128,87.285,87.24,2.44927777]
[1773258883435,3.89105128,87.283,87.24,2.44927777]
[1773258883642,3.89105128,87.282,87.241,3.86782429]
[1773258883939,3.89105128,87.282,87.25,2.44927777]
[1773258885340,10.31,87.28,87.25,2.44927777]
[1773258886740,3.89105128,87.275,87.25,2.44927777]
[1773258887041,3.89105128,87.275,87.235,10.315]
[1773258887042,3.89105128,87.275,87.24,2.44927777]
[1773258888341,3.89105128,87.298,87.25,2.44927777]
[1773258888541,3.51891077,87.297,87.25,2.44927777]
[1773258888732,3.89105128,87.295,87.25,2.44927777]
[1773258889034,3.89105128,87.293,87.25,2.44927777]
[1773258889342,10.309,87.285,87.25,2.44927777]
[1773258889542,3.89105128,87.291,87.24,6.31710206]
[1773258889742,3.51980084,87.29,87.241,3.86782429]
[1773258889943,3.94898571,87.264,87.23,2.44927777]
[1773258890138,3.94898571,87.264,87.232,3.99122149]
[1773258890344,3.94898571,87.286,87.25,2.44927777]
[1773258890546,3.51980084,87.285,87.25,2.44927777]
[1773258890746,3.94898571,87.281,87.25,2.44927777]
[1773258891049,3.94898571,87.281,87.24,2.44927777]
[1773258891846,3.94898571,87.281,87.25,2.44927777]
[1773258892548,3.94898571,87.281,87.251,10.313]
[1773258893045,3.94898571,87.281,87.25,2.44927777]
[1773258893046,3.94898571,87.293,87.252,3.99122149]
[1773258893245,3.94898571,87.291,87.252,3.99122149]
[1773258893546,3.94898571,87.287,87.252,3.99122149]
[1773258893747,3.94898571,87.285,87.252,3.99122149]
[1773258893949,3.52112015,87.284,87.252,3.99122149]
[1773258894146,3.52112015,87.283,87.252,3.99122149]
[1773258894347,3.94898571,87.28,87.24,6.44049926]
[1773258894548,3.52112015,87.279,87.24,6.44049926]
[1773258894748,3.52112015,87.278,87.24,6.44049926]
[1773258894950,3.94898571,87.28,87.24,6.44049926]
[1773258895151,3.94898571,87.277,87.24,6.44049926]
[1773258895849,3.94898571,87.277,87.241,3.99122149]
[1773258897350,14.44,87.305,87.24,2.44927777]
[1773258897351,3.94898571,87.273,87.24,2.44927777]
[1773258898351,10.311,87.272,87.24,2.44927777]
[1773258898553,3.94898571,87.27,87.231,3.99122149]
[1773258898851,3.94898571,87.27,87.076,178.0]
[1773258898852,3.94898571,87.254,87.21,2.44927777]
[1773258899051,3.52240089,87.253,87.211,3.99122149]
[1773258899351,3.52240089,87.252,87.22,2.44927777]
[1773258899551,3.52240089,87.251,87.22,2.44927777]
[1773258899844,3.94898571,87.254,87.22,2.44927777]
[1773258900050,3.49735101,87.253,87.22,2.44927777]
[1773258900245,3.94898571,87.267,87.231,3.99122149]
[1773258900447,3.94898571,87.279,87.24,2.44927777]
[1773258900652,3.49870464,87.278,87.24,6.44049926]
[1773258900850,3.49870464,87.277,87.24,6.44049926]
[1773258901052,10.31,87.274,87.24,6.44049926]
[1773258901250,3.94898571,87.272,87.23,2.44927777]
[1773258901451,3.49870464,87.271,87.23,6.44049926]
[1773258901647,7.44769035,87.27,87.23,6.44049926]
[1773258901852,3.94898571,87.268,87.22,2.44927777]
[1773258902052,3.49870464,87.267,87.22,2.44927777]
[1773258902245,3.94898571,87.265,87.216,3.99122149]
[1773258902448,3.49692408,87.264,87.216,3.99122149]
[1773258902647,3.94898571,87.262,87.216,3.99122149]
[1773258902953,3.94898571,87.262,87.098,11.47]
[1773258902954,3.94898571,87.245,87.191,3.99122149]
[1773258903150,3.94898571,87.245,87.198,14.27852285]
[1773258903453,3.94898571,87.245,87.201,3.99122149]
[1773258904655,3.94898571,87.245,87.203,3.99122149]
[1773258905155,3.94898571,87.243,87.203,3.99122149]
[1773258911464,3.94898571,87.241,87.203,3.99122149]
[1773258911857,3.94898571,87.241,87.193,14.27852285]
[1773258912061,3.94898571,87.229,87.173,14.27852285]
[1773258912258,3.94898571,87.229,87.172,3.99122149]
[1773258912458,3.94898571,87.229,87.176,3.99122149]
[1773258912962,3.94898571,87.224,87.176,3.99122149]
[1773258913962,14.26498571,87.223,87.179,3.99122149]
[1773258914256,3.94898571,87.222,87.179,3.99122149]
[1773258915464,3.94898571,87.221,87.179,3.99122149]
[1773258918065,3.94898571,87.216,87.168,3.99122149]
[1773258918365,3.94898571,87.216,87.167,10.323]
[1773258918366,3.94898571,87.199,87.147,3.99122149]
[1773258918763,3.94898571,87.179,87.135,3.99122149]
[1773258920269,2.44927777,87.17,87.121,3.66594183]
[1773258920469,2.44927777,87.17,87.093,14.44]
[1773258920470,4.02002781,87.169,87.108,3.66594183]
[1773258920671,4.02002781,87.159,87.108,3.66594183]
[1773258920866,4.02002781,87.149,87.108,3.66594183]
[1773258921475,4.02002781,87.149,87.108,13.99594183]
[1773258921660,4.02002781,87.149,87.09,2.44927777]
[1773258921863,4.02002781,87.139,87.091,3.66594183]
[1773258923370,4.02002781,87.139,87.093,3.66594183]
[1773258924567,4.02002781,87.139,87.097,3.66594183]
[1773258924767,4.02002781,87.139,87.1,2.44927777]
[1773258924970,4.02002781,87.139,87.101,3.66594183]
[1773258927365,4.02002781,87.153,87.111,3.66594183]
[1773258927564,4.02002781,87.179,87.131,3.66594183]
[1773258928167,4.02002781,87.179,87.13,2.44927777]
[1773258928168,4.02002781,87.179,87.14,2.44927777]
[1773258930167,4.02002781,87.179,87.144,10.326]
[1773258935477,4.02002781,87.179,87.14,2.44927777]
[1773258935478,4.02002781,87.191,87.15,3.66594183]
[1773258937781,4.02002781,87.191,87.152,10.325]
[1773258937980,4.02002781,87.203,87.16,2.44927777]
[1773258938175,4.02002781,87.203,87.161,3.66594183]
[1773258938571,2.44927777,87.19,87.13,2.44927777]
[1773258938777,4.02002781,87.189,87.129,3.66594183]
[1773258939177,4.02002781,87.177,87.131,10.327]
[1773258939377,4.02002781,87.177,87.131,13.99294183]
[1773258941485,4.02002781,87.177,87.137,10.326]
[1773258943880,4.02002781,87.177,87.132,3.850513]
[1773258944080,4.02002781,87.177,87.119,3.850513]
[1773258944388,4.02002781,87.177,87.12,2.4562183]
[1773258944579,10.324,87.163,87.12,3.850513]
[1773258944784,3.86633139,87.162,87.121,3.850513]
[1773258945590,3.86633139,87.174,87.134,10.327]
[1773258945989,3.86633139,87.174,87.121,3.850513]
[1773258947385,3.86633139,87.173,87.126,10.328]
[1773258948387,3.86633139,87.171,87.126,10.328]
[1773258949392,14.18933139,87.167,87.126,10.328]
[1773258949697,3.86633139,87.166,87.126,10.328]
[1773258950796,3.86633139,87.166,87.13,3.76574675]
[1773258952501,3.86633139,87.166,87.131,10.327]
[1773258956609,3.86633139,87.166,87.13,3.76574675]
[1773258957707,3.86633139,87.166,87.131,3.76574675]
[1773258958407,3.9674433,87.177,87.136,10.327]
[1773258959410,3.9674433,87.175,87.136,10.327]
[1773258959611,3.9674433,87.175,87.131,3.76574675]
[1773258960407,3.9674433,87.17,87.131,3.76574675]
[1773258961513,10.323,87.168,87.131,3.76574675]
[1773258961811,3.9674433,87.17,87.133,3.76574675]
[1773258963311,3.9674433,87.17,87.134,10.327]
[1773258965908,3.9674433,87.17,87.135,3.76574675]
[1773258966911,3.9674433,87.169,87.135,3.76574675]
[1773258968314,10.323,87.168,87.135,3.76574675]
[1773258969619,14.44,87.17,87.137,3.76574675]
[1773258970014,14.44,87.17,87.14,3.76574675]
[1773258971215,3.9674433,87.169,87.128,3.76574675]
[1773258973022,3.9674433,87.169,87.13,3.76574675]
[1773258973919,14.44,87.17,87.13,3.76574675]
[1773258973920,3.9674433,87.167,87.13,3.76574675]
[1773258974112,3.58215974,87.168,87.13,3.76574675]
[1773258974113,3.9674433,87.165,87.13,3.76574675]
[1773258974316,3.58215974,87.164,87.13,3.76574675]
[1773258974521,3.58215974,87.163,87.13,3.76574675]
[1773258974719,3.58215974,87.162,87.13,3.76574675]
[1773258975021,3.9674433,87.164,87.13,3.76574675]
[1773258975022,3.58215974,87.161,87.13,3.76574675]
[1773258975213,3.58215974,87.16,87.13,3.76574675]
[1773258975412,3.58215974,87.159,87.13,3.76574675]
[1773258975616,3.58215974,87.158,87.13,3.76574675]
[1773258975817,3.9674433,87.164,87.13,3.76574675]
[1773258976022,3.58333287,87.163,87.13,3.76574675]
[1773258976322,3.58333287,87.162,87.13,3.76574675]
[1773258976623,3.58333287,87.161,87.13,3.76574675]
[1773258976817,3.58333287,87.16,87.13,3.76574675]
[1773258977019,3.9674433,87.158,87.119,10.329]
[1773258977219,3.9674433,87.156,87.118,18.0442696]
[1773258977521,3.9674433,87.154,87.118,3.76574675]
[1773258977721,3.58333287,87.153,87.118,3.76574675]
[1773258978023,3.58333287,87.153,87.118,14.09474675]
[1773258978024,3.58333287,87.152,87.118,14.09474675]
[1773258978214,3.5826817,87.151,87.118,14.09474675]
[1773258978414,14.44,87.153,87.118,14.09474675]
[1773258978614,3.5826817,87.152,87.118,14.09474675]
[1773258978821,3.5826817,87.151,87.118,14.09474675]
[1773258979022,14.44,87.153,87.118,14.09474675]
[1773258979225,3.58308299,87.152,87.118,14.09474675]
[1773258979523,3.58308299,87.151,87.118,14.09474675]
[1773258979725,3.9674433,87.152,87.118,10.329]
[1773258980021,3.58329967,87.151,87.118,10.329]
[1773258980222,3.9674433,87.152,87.118,10.329]
[1773258980518,3.58312942,87.151,87.121,10.328]
[1773258980718,3.9674433,87.152,87.121,10.328]
[1773258980923,3.58354525,87.151,87.121,10.328]
[1773258981126,3.58390435,87.15,87.119,3.74138712]
[1773258981314,3.9674433,87.152,87.119,3.74138712]
[1773258981523,3.58390931,87.151,87.119,3.74138712]
[1773258981716,3.9674433,87.152,87.119,3.74138712]
[1773258981920,3.58314368,87.151,87.119,3.74138712]
[1773258982224,3.9674433,87.152,87.119,3.74138712]
[1773258982225,3.58360179,87.15,87.119,3.74138712]
[1773258982524,3.9674433,87.152,87.119,3.74138712]
[1773258982724,3.58360257,87.151,87.119,3.74138712]
[1773258983024,3.9674433,87.152,87.119,3.74138712]
[1773258983025,3.58360257,87.15,87.119,3.74138712]
[1773258983224,3.58512995,87.149,87.119,3.74138712]
[1773258983524,3.9674433,87.152,87.119,3.74138712]
[1773258983826,3.58512995,87.151,87.119,3.74138712]
[1773258984020,3.58512995,87.15,87.119,3.74138712]
[1773258984227,3.58512995,87.149,87.119,3.74138712]
[1773258984426,3.58512995,87.148,87.119,3.74138712]
[1773258984627,3.9674433,87.152,87.119,3.74138712]
[1773258984822,3.58648045,87.151,87.119,3.74138712]
[1773258985018,3.58648045,87.15,87.119,3.74138712]
[1773258985228,3.58648045,87.149,87.119,3.74138712]
[1773258985424,3.9674433,87.152,87.12,14.27852285]
[1773258985630,3.58678504,87.151,87.119,3.74138712]
[1773258985829,3.58678504,87.15,87.119,3.74138712]
[1773258986130,4.04136397,87.151,87.119,3.74138712]
[1773258986323,14.44,87.15,87.119,3.74138712]
[1773258987227,14.44,87.15,87.105,21.41778428]
[1773258987228,4.04136397,87.149,87.112,14.27852285]
[1773258987426,4.04136397,87.147,87.103,14.27852285]
[1773258987623,4.04136397,87.139,87.09,14.27852285]
[1773258987825,4.04136397,87.137,87.087,3.74138712]
[1773258988020,4.04136397,87.135,87.087,3.74138712]
[1773258988227,4.04136397,87.128,87.087,3.74138712]
[1773258988423,3.58572674,87.127,87.087,3.74138712]
[1773258988622,3.58572674,87.126,87.087,3.74138712]
[1773258988831,4.04136397,87.128,87.087,3.74138712]
[1773258989031,3.58068766,87.127,87.087,3.74138712]
[1773258989228,4.04136397,87.128,87.087,3.74138712]
[1773258999431,4.04136397,87.124,87.076,14.07538712]
[1773258999735,4.04136397,87.124,87.077,3.74138712]
[1773259000237,2.45953643,87.11,87.069,3.82010596]
[1773259000429,3.71925205,87.113,87.069,3.82010596]
[1773259000630,3.71925205,87.109,87.063,14.27890947]
[1773259000832,3.71925205,87.099,87.058,3.82010596]
[1773259001336,3.71925205,87.099,87.059,3.82010596]
[1773259002443,3.71925205,87.099,87.061,14.15510596]
[1773259002937,3.71925205,87.099,87.061,3.82010596]
[1773259004429,3.71925205,87.109,87.063,3.82010596]
[1773259005338,3.71925205,87.109,87.069,10.335]
[1773259005636,3.71925205,87.109,87.063,3.82010596]
[1773259006440,3.71925205,87.107,87.063,3.82010596]
[1773259007035,3.71925205,87.104,87.038,3.82010596]
[1773259007235,3.71925205,87.099,87.041,3.82010596]
[1773259007437,3.71925205,87.098,87.041,3.82010596]
[1773259008436,3.71925205,87.097,87.053,14.15610596]
[1773259009036,3.71925205,87.095,87.054,3.82010596]
[1773259009240,3.71925205,87.095,87.056,10.336]
[1773259009546,3.71925205,87.095,87.056,14.15610596]
[1773259011840,3.70887717,87.093,87.056,3.82010596]
[1773259012441,3.70887717,87.085,87.043,3.99946234]
[1773259015448,3.70887717,87.085,87.045,3.99946234]
[1773259016450,3.70887717,87.085,87.048,14.33646234]
[1773259017054,3.70887717,87.085,87.048,3.99946234]
[1773259017552,3.70887717,87.095,87.051,3.99946234]
[1773259018554,3.70887717,87.095,87.057,10.336]
[1773259018957,3.70887717,87.095,87.057,14.33546234]
[1773259019451,3.70887717,87.095,87.04,2.45953643]
[1773259019452,3.70887717,87.095,87.06,10.336]
[1773259019656,3.70887717,87.106,87.061,3.99946234]
[1773259021053,14.44,87.113,87.074,3.99946234]
[1773259022362,14.44,87.113,87.078,3.99946234]
[1773259023161,14.44,87.113,87.033,21.41778428]
[1773259023162,3.70887717,87.109,87.067,3.99946234]
[1773259023368,3.70887717,87.099,87.056,3.99946234]
[1773259023861,3.70887717,87.089,87.045,3.99946234]
[1773259024558,3.70887717,87.089,87.011,20.683]
[1773259024559,3.70887717,87.089,87.047,3.99946234]
[1773259025362,3.70887717,87.089,87.052,3.99946234]
[1773259025957,3.70887717,87.089,87.055,14.33546234]
[1773259027163,14.44,87.091,87.056,3.99946234]
[1773259029467,14.35979748,87.091,87.057,14.33546234]
[1773259029661,14.35979748,87.091,87.057,3.99946234]
[1773259030165,18.06867465,87.091,87.057,3.99946234]
[1773259032668,3.70887717,87.09,87.057,3.99946234]
[1773259032969,3.70887717,87.09,87.048,14.27890947]
[1773259033169,3.70887717,87.089,87.048,14.27890947]
[1773259033368,3.70887717,87.089,87.046,3.99946234]
[1773259034266,3.70887717,87.089,87.046,18.27837181]
[1773259034471,3.70887717,87.088,87.046,18.27837181]
[1773259035464,3.70887717,87.088,87.046,3.99946234]
[1773259041070,3.99308376,87.085,87.046,3.99946234]
[1773259041678,3.99308376,87.077,87.035,14.16847956]
[1773259043477,3.99308376,87.075,87.035,14.16847956]
[1773259043974,7.48721699,87.086,87.039,3.82947956]
[1773259044176,3.99308376,87.084,87.039,3.82947956]
[1773259044367,3.99308376,87.082,87.039,3.82947956]
[1773259045174,3.99308376,87.082,87.045,3.82947956]
[1773259045674,14.44,87.081,87.045,3.82947956]
[1773259046174,18.43308376,87.081,87.045,3.82947956]
[1773259050287,14.44,87.081,87.045,3.82947956]
[1773259050481,3.99308376,87.08,87.045,14.16647956]
[1773259050783,3.99308376,87.08,87.046,3.82947956]
[1773259051184,3.99308376,87.08,87.048,3.82947956]
[1773259055391,14.44,87.079,87.051,3.82947956]
[1773259055892,14.44,87.079,87.053,10.336]
[1773259056086,14.44,87.079,87.051,3.82947956]
[1773259057993,3.99308376,87.09,87.051,3.82947956]
[1773259058193,14.44,87.084,87.051,3.82947956]
[1773259058382,3.63933742,87.083,87.051,3.82947956]
[1773259058587,14.44,87.084,87.051,3.82947956]
[1773259058792,3.639355,87.083,87.051,3.82947956]
[1773259059093,14.44,87.084,87.051,3.82947956]
[1773259059293,3.6390319,87.083,87.051,3.82947956]
[1773259059491,14.44,87.084,87.051,3.82947956]
[1773259059691,3.63902923,87.083,87.052,3.82947956]
[1773259059887,14.44,87.084,87.052,3.82947956]
[1773259060082,1.694e-05,87.083,87.061,3.99647897]
[1773259060292,14.44,87.111,87.074,3.99647897]
[1773259060589,3.6892198,87.124,87.074,3.99647897]
[1773259060786,3.6892198,87.107,87.069,14.30362026]
[1773259060986,3.6892198,87.107,87.068,3.99647897]
[1773259061391,3.6892198,87.107,87.06,2.46127352]
[1773259061392,14.44,87.11,87.071,3.99647897]
[1773259061988,14.44,87.11,87.072,3.99647897]
[1773259062485,14.44,87.11,87.076,3.99647897]
[1773259063592,3.6892198,87.109,87.069,14.30362026]
[1773259063892,3.6892198,87.126,87.071,3.99647897]
[1773259064193,3.6892198,87.124,87.071,3.99647897]
[1773259065491,3.6892198,87.122,87.078,10.333]
[1773259067290,3.6892198,87.122,87.078,14.32947897]
[1773259069294,3.6892198,87.12,87.079,3.99647897]
[1773259070393,14.44,87.119,87.082,3.83849192]
[1773259070596,14.44,87.122,87.082,3.83849192]
[1773259071496,14.44,87.122,87.087,14.17049192]
[1773259071898,3.98563223,87.121,87.087,3.83849192]
[1773259072400,3.98563223,87.119,87.087,3.83849192]
[1773259072699,3.61808285,87.118,87.087,3.83849192]
[1773259072900,3.98563223,87.119,87.087,3.83849192]
[1773259073297,3.98563223,87.119,87.072,10.334]
[1773259073495,3.98563223,87.117,87.072,10.334]
[1773259073800,3.98563223,87.117,87.072,14.17249192]
[1773259073991,3.98563223,87.117,87.073,3.83849192]
[1773259074393,3.98563223,87.115,87.073,3.83849192]
[1773259075603,14.44,87.114,87.073,3.83849192]
[1773259075904,3.98563223,87.113,87.073,3.83849192]
[1773259077000,3.98563223,87.113,87.075,3.83849192]
[1773259077505,3.98563223,87.121,87.081,3.83849192]
[1773259077808,3.98563223,87.119,87.071,3.83849192]
[1773259079612,3.98563223,87.116,87.072,3.83849192]
[1773259080110,3.98563223,87.114,87.072,3.83849192]
[1773259080312,3.98563223,87.112,87.061,3.83849192]
[1773259080612,3.98563223,87.11,87.061,3.83849192]
[1773259080910,3.98563223,87.108,87.061,3.83849192]
[1773259081108,3.98563223,87.106,87.061,3.83849192]
[1773259081310,3.61687145,87.105,87.061,3.83849192]
[1773259081510,3.98563223,87.103,87.051,3.83849192]
[1773259082713,10.331,87.096,87.053,3.83849192]
[1773259083008,3.98563223,87.103,87.053,3.83849192]
[1773259083208,3.98563223,87.102,87.053,3.83849192]
[1773259083410,2.46127352,87.12,87.063,3.83849192]
[1773259083411,10.33,87.111,87.063,3.83849192]
[1773259083612,3.98563223,87.109,87.07,2.46127352]
[1773259083813,3.98563223,87.109,87.07,6.29976544]
[1773259084013,3.98563223,87.109,87.074,3.83849192]
[1773259091018,3.98563223,87.109,87.064,10.335]
[1773259091218,3.98563223,87.109,87.064,14.17349192]
[1773259091908,3.98563223,87.107,87.064,14.17349192]
[1773259095321,3.98563223,87.105,87.064,14.17349192]
[1773259095620,3.98563223,87.105,87.065,3.83849192]
[1773259096920,3.98563223,87.095,87.05,3.83849192]
[1773259097113,3.98563223,87.089,87.05,3.83849192]
[1773259097314,3.98563223,87.089,87.05,18.14211218]
[1773259098417,3.98563223,87.089,87.051,10.337]
[1773259098720,3.98563223,87.089,87.052,3.83849192]
[1773259100416,3.98563223,87.089,87.053,3.89815054]
[1773259102521,14.44,87.09,87.059,3.89815054]
[1773259103525,3.79714043,87.089,87.059,3.89815054]
[1773259104630,20.654,87.134,87.061,3.89815054]
[1773259104631,3.79714043,87.111,87.061,3.89815054]
[1773259104830,18.07068527,87.11,87.062,3.89815054]
[1773259105028,3.63068527,87.109,87.062,3.89815054]
[1773259105330,3.63068527,87.108,87.063,3.89815054]
[1773259105530,14.44,87.11,87.063,3.89815054]
[1773259105531,3.63068527,87.107,87.063,3.89815054]
[1773259105730,3.63068527,87.106,87.063,3.89815054]
[1773259106028,3.63068527,87.105,87.063,3.89815054]
[1773259106230,3.63068527,87.104,87.063,3.89815054]
[1773259106430,3.63068527,87.103,87.068,3.89815054]
[1773259106631,3.63068527,87.102,87.068,3.89815054]
[1773259106827,3.63068527,87.101,87.068,3.89815054]
[1773259107029,3.63068527,87.1,87.068,3.89815054]
[1773259107229,3.63068527,87.099,87.068,3.89815054]
[1773259107429,3.63068527,87.098,87.068,3.89815054]
[1773259107728,3.63068527,87.097,87.068,3.89815054]
[1773259107922,3.63171371,87.096,87.069,10.335]
[1773259108130,14.44,87.11,87.07,3.89815054]
[1773259108435,3.79714043,87.108,87.07,14.30362026]
[1773259108626,3.79714043,87.106,87.07,14.30362026]
[1773259108827,3.63218961,87.105,87.07,18.2017708]
[1773259109124,3.63254648,87.104,87.07,18.2017708]
[1773259109327,18.23714043,87.106,87.07,28.5357708]
[1773259109528,3.63262979,87.105,87.07,28.5357708]
[1773259109732,3.63262979,87.104,87.07,28.5357708]
[1773259109927,18.23714043,87.106,87.07,28.5357708]
[1773259110128,3.67316724,87.105,87.07,28.5357708]
[1773259110432,3.67316724,87.104,87.07,28.5357708]
[1773259110633,3.67316724,87.103,87.07,28.5357708]
[1773259110827,3.67316724,87.102,87.07,14.23215054]
[1773259111031,3.67316724,87.101,87.07,14.23215054]
[1773259111234,18.23714043,87.106,87.071,3.89815054]
[1773259111428,3.67292851,87.105,87.071,3.89815054]
[1773259111731,3.67292851,87.104,87.071,3.89815054]
[1773259111933,3.67292851,87.103,87.071,3.89815054]
[1773259112133,3.67292851,87.102,87.071,3.89815054]